bitfinex-derivatives/quotes_ETHF0:USTF0_20260314
["timestamp","ask_amount","ask_price","bid_price","bid_amount"]
[1773497146929,0.57435269,2079.5,2078.5,6.22046462]
[1773497147127,0.57435269,2079.5,2078.5,0.17510914]
[1773497147631,0.57435269,2079.2,2078.2,6.04535548]
[1773497147933,0.57435269,2079.2,2078.2,0.00404168]
[1773497147934,0.57435269,2079.1,2078.2,0.00404168]
[1773497155138,0.57435269,2079.1,2078.2,0.18022538]
[1773497155636,0.57435269,2079.1,2078.3,0.17626272]
[1773497157935,0.57435269,2079.1,2078.5,0.17844655]
[1773497158135,0.56840446,2079.5,2078.7,0.17844655]
[1773497161441,0.56840446,2079.3,2078.5,0.17299985]
[1773497173152,0.56840446,2079.3,2078.7,0.17157814]
[1773497175959,13.92851302,2079.9,2078.9,0.17824637]
[1773497175960,0.56840446,2079.7,2078.9,0.17824637]
[1773497179059,0.56840446,2079.7,2079.1,0.17365003]
[1773497179754,0.56840446,2079.7,2079.3,0.17177261]
[1773497180353,0.56840446,2080.2,2079.3,0.17177261]
[1773497181060,0.56840446,2080.2,2079.5,0.57022151]
[1773497182963,0.54287419,2079.9,2079.1,41.37591003]
[1773497183157,0.54287419,2079.9,2078.8,9.05480618]
[1773497183158,0.54287419,2079.7,2078.9,0.57591003]
[1773497183757,0.54287419,2079.7,2079.0,41.37591003]
[1773497184357,0.54287419,2079.7,2079.1,0.57591003]
[1773497185260,0.54287419,2080.1,2079.3,0.57591003]
[1773497187166,0.54287419,2080.1,2079.5,0.57591003]
[1773497193977,0.54287419,2080.1,2079.4,0.57591003]
[1773497208390,0.54287419,2080.1,2079.5,0.57591003]
[1773497212788,0.557761,2080.3,2079.5,0.57591003]
[1773497213292,0.557761,2080.3,2079.6,0.56047884]
[1773497217187,0.557761,2080.3,2079.6,6.60583432]
[1773497217493,0.557761,2080.3,2079.7,0.56047884]
[1773497217693,0.557761,2080.3,2079.7,0.5662084]
[1773497217895,0.557761,2080.3,2079.7,0.00572956]
[1773497221893,0.557761,2080.3,2079.7,0.5662084]
[1773497231002,0.557761,2080.7,2080.1,0.56047884]
[1773497231198,0.557761,2080.6,2079.7,0.00572956]
[1773497232005,0.557761,2080.5,2079.7,0.00572956]
[1773497234212,0.557761,2080.3,2079.7,0.00572956]
[1773497244115,0.557761,2080.3,2079.7,0.57802716]
[1773497248621,0.557761,2080.3,2079.7,0.00572956]
[1773497251420,0.557761,2080.3,2079.2,7.54442958]
[1773497251621,0.54503326,2080.1,2079.1,0.5722976]
[1773497251820,0.54503326,2080.0,2079.1,0.5722976]
[1773497252620,0.54503326,2080.0,2079.1,0.57688856]
[1773497258529,0.54503326,2080.0,2079.3,0.5722976]
[1773497261429,0.54503326,2080.0,2079.2,41.3722976]
[1773497261630,0.54503326,2080.0,2079.2,0.5722976]
[1773497279651,0.58606725,2079.8,2079.2,0.5722976]
[1773497287057,1.51787138,2079.9,2079.1,0.00459096]
[1773497287058,0.58606725,2079.6,2079.1,0.60021067]
[1773497287356,0.24034,2080.0,2079.0,0.00923951]
[1773497287357,0.58606725,2079.4,2079.0,0.00923951]
[1773497288258,0.58606725,2079.4,2079.0,0.01443436]
[1773497290150,0.58606725,2079.4,2079.0,0.00519485]
[1773497290550,0.58606725,2079.4,2079.0,0.60081456]
[1773497292461,0.58606725,2079.4,2079.0,0.00519485]
[1773497295559,0.58606725,2079.2,2078.5,6.03498689]
[1773497295759,0.58606725,2079.2,2078.6,0.59561971]
[1773497296758,0.58606725,2079.2,2078.6,0.60086219]
[1773497305065,0.58606725,2079.2,2078.4,0.56791416]
[1773497305271,0.55983685,2079.0,2078.4,0.56791416]
[1773497306165,0.56571787,2079.0,2078.4,0.57230076]
[1773497309472,0.55983685,2078.8,2078.4,0.0043866]
[1773497310179,0.55983685,2078.8,2078.0,40.8]
[1773497310180,0.55983685,2078.8,2078.0,0.56791416]
[1773497311179,0.55983685,2078.8,2078.0,0.57329527]
[1773497315078,0.00588102,2079.0,2078.4,0.56791416]
[1773497315382,0.55983685,2078.9,2078.2,0.56791416]
[1773497315578,0.55983685,2078.9,2078.1,0.56791416]
[1773497321683,0.55983685,2078.8,2078.0,0.00538111]
[1773497321987,0.55983685,2078.6,2078.0,0.00538111]
[1773497323690,0.55983685,2078.6,2078.0,0.57329527]
[1773497327795,0.55983685,2078.6,2078.0,0.00538111]
[1773497331292,0.57331936,2078.4,2077.6,6.6210663]
[1773497331491,0.57331936,2078.4,2077.6,0.58607941]
[1773497332294,0.57331936,2078.4,2077.6,0.59009507]
[1773497332692,0.57331936,2078.4,2077.6,0.00401566]
[1773497332901,0.57331936,2078.2,2077.6,0.59009507]
[1773497334587,0.57331936,2078.2,2077.6,0.00401566]
[1773497339092,0.58331936,2078.2,2077.6,0.00401566]
[1773497343598,0.58331936,2078.2,2077.0,29.76798689]
[1773497343599,0.58331936,2078.2,2077.2,0.58607941]
[1773497344808,0.58331936,2078.2,2077.2,0.59071095]
[1773497352410,0.57331936,2078.1,2077.2,0.59071095]
[1773497355616,0.57331936,2078.0,2077.2,0.59071095]
[1773497357316,0.57331936,2077.9,2077.2,0.59071095]
[1773497358016,0.57331936,2077.9,2077.2,0.00463154]
[1773497358716,0.57331936,2077.9,2077.2,0.59071095]
[1773497365519,0.5648661,2077.8,2077.1,0.55487708]
[1773497366621,0.5648661,2077.8,2077.1,0.56075322]
[1773497366921,0.5648661,2077.8,2077.1,0.00587614]
[1773497367121,0.5648661,2077.8,2076.8,0.55487708]
[1773497367122,0.5648661,2077.4,2076.7,6.58986397]
[1773497367323,0.5648661,2077.4,2076.7,0.55487708]
[1773497367518,0.5648661,2077.3,2076.7,0.55487708]
[1773497368118,0.56983989,2077.3,2076.7,0.55876625]
[1773497369019,0.56983989,2077.3,2076.7,0.00388917]
[1773497370625,0.56983989,2077.3,2076.6,1.28988557]
[1773497371125,0.56983989,2077.3,2076.4,0.55487708]
[1773497371326,0.5648661,2077.2,2076.4,0.55487708]
[1773497371528,0.5648661,2077.2,2076.4,0.56017046]
[1773497372023,0.5648661,2077.1,2076.4,0.56017046]
[1773497372220,0.5648661,2077.0,2076.4,0.56017046]
[1773497374823,0.5648661,2077.0,2076.4,0.00529338]
[1773497378630,0.5648661,2077.0,2076.1,0.55487708]
[1773497379626,0.5648661,2077.0,2076.1,0.55888931]
[1773497379827,0.5648661,2076.9,2076.1,0.55888931]
[1773497382935,0.5648661,2077.1,2076.1,0.55888931]
[1773497383427,0.5648661,2077.0,2076.1,0.55888931]
[1773497393933,0.5784641,2076.9,2076.1,0.55888931]
[1773497396032,0.5784641,2076.9,2076.1,0.00401223]
[1773497396236,0.5784641,2076.7,2076.1,0.00401223]
[1773497396438,0.5784641,2076.6,2076.1,0.00401223]
[1773497396636,6.16094066,2076.6,2076.1,0.00401223]
[1773497396838,0.5784641,2076.6,2076.1,0.00401223]
[1773497397433,0.5784641,2076.4,2075.4,0.5409417]
[1773497397634,0.5784641,2076.2,2075.4,0.5409417]
[1773497398236,0.5784641,2076.1,2075.4,0.5409417]
[1773497398437,0.5784641,2076.1,2075.4,0.54488493]
[1773497399533,0.5784641,2076.0,2075.4,0.54488493]
[1773497401041,0.5784641,2076.0,2075.0,0.5409417]
[1773497401236,0.5784641,2075.9,2075.0,0.5409417]
[1773497401436,0.5784641,2075.8,2075.0,0.5409417]
[1773497401640,0.5784641,2075.6,2075.0,0.5409417]
[1773497401841,0.5784641,2076.0,2075.3,0.5409417]
[1773497402141,6.16338716,2076.0,2075.3,0.54599225]
[1773497402334,0.58418878,2076.0,2075.3,0.54599225]
[1773497405644,0.00572468,2076.0,2075.5,0.5409417]
[1773497405846,0.59418878,2076.0,2075.5,0.5409417]
[1773497406741,0.5784641,2075.7,2075.3,0.00505055]
[1773497407244,0.5784641,2075.7,2075.1,0.5409417]
[1773497407442,0.5784641,2075.7,2075.0,0.5409417]
[1773497407645,0.5784641,2075.7,2074.7,0.5409417]
[1773497408247,0.5784641,2075.7,2074.7,0.54659018]
[1773497409250,0.5784641,2075.5,2074.7,0.00564848]
[1773497409445,0.5784641,2075.3,2074.7,0.54659018]
[1773497410346,0.5784641,2075.7,2074.8,0.5409417]
[1773497410651,0.5784641,2075.7,2075.2,0.5409417]
[1773497411155,0.5784641,2075.9,2075.2,0.5409417]
[1773497418149,0.5784641,2075.5,2074.8,0.5409417]
[1773497418647,0.5784641,2075.5,2074.7,0.54659018]
[1773497418846,0.5784641,2075.5,2074.7,0.00564848]
[1773497419052,0.5784641,2075.3,2074.7,0.00564848]
[1773497419248,0.24083,2075.8,2074.3,0.5409417]
[1773497419249,0.5784641,2075.1,2074.3,0.5409417]
[1773497419452,0.5784641,2075.1,2074.5,0.5409417]
[1773497420257,0.5784641,2075.1,2074.5,0.54541845]
[1773497420958,8.265,2075.5,2074.5,0.54541845]
[1773497421261,0.58681475,2075.7,2074.5,0.54541845]
[1773497421651,0.58681475,2075.6,2074.5,0.54541845]
[1773497426460,0.58681475,2075.4,2074.5,0.00447675]
[1773497426863,0.58681475,2075.3,2074.5,0.00447675]
[1773497428765,0.58681475,2075.3,2074.5,0.57217221]
[1773497429460,0.58681475,2075.2,2074.5,0.57217221]
[1773497429760,0.58681475,2075.2,2073.9,0.56769546]
[1773497429761,0.58681475,2075.1,2073.9,0.56769546]
[1773497429957,0.58681475,2075.0,2073.9,0.56769546]
[1773497430658,0.58681475,2075.0,2073.9,0.57227085]
[1773497431367,0.58681475,2075.2,2073.9,0.57227085]
[1773497437676,0.53867081,2075.1,2073.9,0.57227085]
[1773497438770,0.53867081,2075.0,2073.9,0.57227085]
[1773497439578,0.53867081,2074.9,2073.9,0.57227085]
[1773497444978,0.53867081,2074.8,2073.9,0.54367528]
[1773497445372,0.53867081,2074.7,2073.9,0.54367528]
[1773497448977,0.53867081,2074.7,2073.9,0.00457539]
[1773497449783,0.54479503,2074.6,2073.9,0.00457539]
[1773497450683,0.54479503,2074.6,2073.3,40.8]
[1773497450684,0.54479503,2074.6,2073.4,0.55230272]
[1773497451185,0.57411232,2074.5,2073.4,0.55230272]
[1773497451684,0.57913959,2074.5,2073.4,0.55574614]
[1773497453380,0.57411232,2074.4,2073.4,0.55574614]
[1773497453881,0.57411232,2074.4,2073.4,0.00344342]
[1773497454680,10.17156163,2074.4,2073.4,0.00344342]
[1773497454879,0.57411232,2074.3,2073.4,0.00344342]
[1773497455184,0.57411232,2074.3,2073.1,0.56659985]
[1773497455185,0.57411232,2074.1,2073.1,0.56659985]
[1773497455385,0.57411232,2074.0,2073.1,0.56659985]
[1773497455880,0.57411232,2074.1,2073.1,0.56659985]
[1773497456080,5.56611667,2074.3,2073.1,0.57121343]
[1773497456286,0.57411232,2074.3,2073.1,0.57121343]
[1773497457986,0.57411232,2074.3,2073.3,0.5565583]
[1773497459688,0.58411232,2074.3,2073.3,0.5565583]
[1773497461390,0.58411232,2074.3,2073.1,0.55526894]
[1773497461581,0.57411232,2074.2,2073.1,0.55526894]
[1773497461780,0.57411232,2074.1,2073.1,0.55526894]
[1773497462885,0.57411232,2074.0,2073.1,0.55526894]
[1773497477804,0.57411232,2074.0,2073.1,0.00461358]
[1773497478702,0.57411232,2074.0,2073.1,0.57121343]
[1773497479298,0.57411232,2073.9,2073.1,0.57121343]
[1773497479900,0.57411232,2074.1,2073.1,0.57121343]
[1773497480101,0.57411232,2074.0,2073.1,0.57121343]
[1773497480294,6.13999465,2074.0,2073.1,0.57121343]
[1773497480495,0.57411232,2074.2,2073.1,0.57121343]
[1773497480699,0.57411232,2074.2,2073.2,0.56659985]
[1773497481500,0.01,2074.3,2073.4,0.5562552]
[1773497481803,0.01,2074.3,2073.6,0.5562552]
[1773497485005,0.57553746,2074.3,2073.8,0.55411556]
[1773497485700,0.01,2074.3,2073.8,0.55411556]
[1773497485902,0.56553746,2074.4,2073.8,0.55411556]
[1773497495211,0.57056473,2074.5,2073.8,0.55411556]
[1773497495711,0.56553746,2074.7,2073.8,0.55411556]
[1773497496310,0.56553746,2074.7,2074.0,0.55600288]
[1773497496615,0.56553746,2074.7,2074.1,0.5559534]
[1773497496816,0.56967961,2074.7,2074.1,0.5559534]
[1773497506024,0.00414215,2074.7,2074.1,0.5559534]
[1773497506224,0.56553746,2074.9,2074.1,0.5559534]
[1773497506928,0.56553746,2075.4,2074.1,0.5559534]
[1773497507125,0.56553746,2075.3,2074.3,0.55817287]
[1773497510026,0.56553746,2075.3,2074.3,7.54442958]
[1773497510229,0.56553746,2075.3,2074.4,0.54952248]
[1773497510532,0.56553746,2075.3,2074.6,0.54952248]
[1773497510833,0.56553746,2075.3,2074.6,0.55502037]
[1773497511529,0.56553746,2075.3,2074.2,48.34442958]
[1773497511730,0.5670773,2075.0,2073.9,0.55606007]
[1773497511928,0.5670773,2075.0,2074.2,0.55606007]
[1773497512128,0.5670773,2075.0,2074.4,0.55606007]
[1773497512627,0.5670773,2075.0,2074.4,0.56116213]
[1773497520542,0.5670773,2075.0,2074.4,0.00510206]
[1773497520742,0.5670773,2075.0,2074.4,24.04210206]
[1773497522540,0.5670773,2075.0,2074.4,24.59816213]
[1773497523838,0.5670773,2075.0,2074.4,0.00510206]
[1773497524531,0.5670773,2075.0,2074.1,0.55606007]
[1773497525642,0.5670773,2074.9,2074.1,0.55987896]
[1773497540252,0.5670773,2074.8,2074.1,0.55987896]
[1773497544655,0.58803896,2074.7,2074.1,0.55987896]
[1773497544957,0.58803896,2074.7,2074.1,0.00381889]
[1773497553663,0.58803896,2074.6,2074.1,0.5894382]
[1773497557161,0.58803896,2074.8,2074.1,0.5894382]
[1773497557366,0.58803896,2074.8,2074.3,0.58561931]
[1773497559869,0.58803896,2074.8,2074.1,24.35481889]
[1773497560058,0.58803896,2074.8,2074.1,24.35681889]
[1773497564070,0.58803896,2074.8,2074.1,24.9424382]
[1773497564565,0.58803896,2074.8,2074.2,0.58561931]
[1773497565172,0.58803896,2075.0,2074.4,0.58561931]
[1773497565369,0.58803896,2074.9,2074.4,0.58561931]
[1773497565666,0.58803896,2074.8,2074.4,0.58561931]
[1773497569564,0.58857397,2075.0,2074.4,0.58561931]
[1773497570072,0.58857397,2075.0,2074.6,0.59467695]
[1773497580274,0.58857397,2075.0,2074.2,0.58588011]
[1773497580473,0.58857397,2075.0,2074.3,0.58588011]
[1773497581983,0.58857397,2075.0,2074.5,0.58588011]
[1773497582182,5.58071123,2075.2,2074.5,0.58588011]
[1773497582485,0.58975733,2075.1,2074.7,0.58588011]
[1773497582679,0.58975733,2075.2,2074.7,0.58588011]
[1773497586689,0.58975733,2075.2,2074.5,0.58588011]
[1773497590591,0.59975733,2075.2,2074.5,0.58588011]
[1773497601591,0.56819944,2075.1,2074.5,0.58588011]
[1773497601891,0.56819944,2075.0,2074.2,0.58941862]
[1773497604086,0.56819944,2074.9,2074.2,0.58941862]
[1773497604291,0.56819944,2074.8,2074.2,0.58941862]
[1773497608895,0.56819944,2074.8,2074.1,0.00381889]
[1773497610403,6.13940828,2074.8,2074.1,0.00381889]
[1773497610607,0.56819944,2074.8,2074.1,0.00381889]
[1773497611403,0.56819944,2074.7,2074.1,0.00381889]
[1773497612005,0.56819944,2074.7,2074.1,0.59323751]
[1773497616917,0.56819944,2074.7,2073.7,0.58941862]
[1773497617207,0.56819944,2074.6,2073.7,0.58941862]
[1773497618114,0.56819944,2074.2,2073.2,0.58941862]
[1773497619205,0.56819944,2074.2,2073.2,0.59498793]
[1773497622621,0.56819944,2074.2,2073.2,0.00556931]
[1773497622920,0.56819944,2074.1,2073.2,0.00556931]
[1773497623217,0.56819944,2074.0,2073.2,0.00556931]
[1773497623518,0.56819944,2074.0,2073.2,0.59498793]
[1773497627618,0.56819944,2073.9,2073.2,0.00556931]
[1773497627918,0.57185705,2073.9,2073.2,0.00556931]
[1773497632417,0.57185705,2073.9,2073.0,0.56777548]
[1773497632612,0.56495073,2073.8,2072.4,17.243]
[1773497632818,0.56495073,2073.8,2072.5,0.56777548]
[1773497633116,0.56495073,2073.7,2072.5,0.56777548]
[1773497633417,0.56495073,2073.6,2072.5,0.57337012]
[1773497636025,0.56495073,2073.6,2072.6,0.56777548]
[1773497649333,0.56495073,2073.6,2072.7,0.56777548]
[1773497649531,0.56495073,2073.6,2072.7,2.09455012]
[1773497649725,0.56495073,2073.6,2072.8,0.56777548]
[1773497654735,0.56495073,2073.5,2072.8,0.56777548]
[1773497659044,0.56495073,2073.7,2073.0,0.56777548]
[1773497659443,0.56495073,2073.6,2073.0,0.56777548]
[1773497660340,6.173672,2073.6,2073.0,0.56777548]
[1773497660541,0.56495073,2073.6,2073.0,0.56777548]
[1773497661243,6.17421185,2073.6,2073.0,0.56777548]
[1773497661443,0.56495073,2073.6,2073.0,0.56777548]
[1773497662242,6.16643905,2073.7,2073.0,0.56777548]
[1773497662437,0.55718107,2073.7,2073.0,0.56777548]
[1773497670452,0.55718107,2073.7,2072.8,7.54442958]
[1773497670453,0.55718107,2073.7,2073.2,0.5547419]
[1773497671650,5.60980876,2073.8,2073.2,0.5547419]
[1773497671651,6.16698983,2073.8,2073.2,0.5547419]
[1773497671851,0.55718107,2073.8,2073.2,0.5547419]
[1773497672052,6.17380927,2073.9,2073.2,0.5547419]
[1773497672251,5.61297059,2073.8,2073.2,0.5547419]
[1773497672551,0.56083868,2073.9,2073.4,0.5547419]
[1773497672953,0.55718107,2073.8,2073.4,0.5547419]
[1773497673147,6.1693748,2073.8,2073.4,0.5547419]
[1773497673346,0.55718107,2073.8,2073.4,0.5547419]
[1773497673851,0.00365761,2073.9,2073.6,0.5547419]
[1773497674046,0.55718107,2074.1,2073.6,0.5547419]
[1773497674844,0.55718107,2074.0,2073.6,0.5547419]
[1773497675045,0.56106356,2074.0,2073.6,0.5547419]
[1773497676448,0.00388249,2074.0,2073.6,0.5547419]
[1773497676647,0.55718107,2074.2,2073.6,0.5547419]
[1773497677650,0.56207128,2074.2,2073.6,0.5547419]
[1773497690455,0.56207128,2074.2,2073.8,0.55186501]
[1773497691659,0.00489021,2074.2,2073.8,0.55186501]
[1773497691960,0.57535541,2074.2,2073.8,0.55186501]
[1773497695359,0.00489021,2074.2,2073.8,0.55186501]
[1773497695563,0.57535541,2074.2,2073.8,0.55186501]
[1773497701567,5.58001529,2074.6,2073.8,0.55186501]
[1773497701568,0.5704652,2074.3,2073.8,0.55186501]
[1773497702767,0.57645672,2074.3,2073.8,0.55186501]
[1773497705771,0.5704652,2074.6,2074.0,0.55696776]
[1773497706272,0.5704652,2074.8,2074.2,0.55696776]
[1773497706876,0.57586291,2074.8,2074.2,0.56215068]
[1773497712978,0.5704652,2074.9,2074.2,0.56215068]
[1773497713974,0.57451659,2074.9,2074.2,0.56215068]
[1773497727094,0.00405139,2074.9,2074.2,0.56215068]
[1773497729196,0.54841699,2075.2,2074.2,0.56215068]
[1773497730195,0.55358137,2075.2,2074.4,0.59388656]
[1773497734299,0.55358137,2075.2,2074.4,24.54088656]
[1773497734699,0.54358137,2075.2,2074.4,24.54088656]
[1773497737000,0.55358137,2075.2,2074.4,24.54088656]
[1773497739891,0.55358137,2075.2,2074.4,0.59388656]
[1773497742004,0.55358137,2075.2,2074.3,0.59388656]
[1773497742208,0.53841699,2074.9,2074.2,0.00518292]
[1773497742402,0.53841699,2074.8,2074.2,0.00518292]
[1773497742897,0.53841699,2074.8,2073.8,8.13831614]
[1773497743104,0.53841699,2074.6,2073.8,0.59388656]
[1773497743301,0.53841699,2074.5,2073.8,0.59388656]
[1773497743900,0.53841699,2074.5,2073.8,0.59884044]
[1773497747408,0.53841699,2074.5,2073.8,0.00495388]
[1773497751613,0.53841699,2074.5,2073.3,0.56583443]
[1773497751814,0.56193594,2074.4,2073.3,0.56583443]
[1773497752014,0.56193594,2074.3,2073.3,0.56583443]
[1773497752312,0.56193594,2074.3,2073.4,0.56583443]
[1773497752613,0.56193594,2074.3,2073.4,0.57018679]
[1773497760112,0.56193594,2074.3,2073.4,0.00435236]
[1773497760508,8.35397,2074.6,2073.1,0.56583443]
[1773497760509,2.08667313,2074.1,2073.1,0.56583443]
[1773497760716,0.56193594,2073.7,2072.7,0.56583443]
[1773497761019,0.56193594,2073.7,2072.8,0.56583443]
[1773497761711,0.56694567,2073.7,2072.8,0.57063556]
[1773497771726,0.56193594,2073.4,2072.8,0.57063556]
[1773497778627,0.57193594,2073.4,2072.8,0.57063556]
[1773497780632,0.00500973,2073.7,2073.2,0.56583443]
[1773497781129,0.56694567,2073.7,2073.2,0.56583443]
[1773497781829,5.57581946,2074.2,2073.4,0.54046691]
[1773497781830,0.54148924,2073.8,2073.4,0.54046691]
[1773497782733,0.54760426,2073.8,2073.4,0.54046691]
[1773497782931,0.00611502,2073.8,2073.4,0.54046691]
[1773497784630,0.54760426,2073.8,2073.4,0.54046691]
[1773497785030,0.00611502,2073.8,2073.4,0.54046691]
[1773497785531,0.54760426,2073.8,2073.4,0.54046691]
[1773497786328,0.54148924,2074.1,2073.5,0.54046691]
[1773497786522,0.54148924,2074.2,2073.7,0.54046691]
[1773497787427,6.13054908,2074.2,2073.7,0.54046691]
[1773497787633,0.54592723,2074.2,2073.7,0.54046691]
[1773497787933,0.00443799,2074.2,2073.7,0.54046691]
[1773497788128,0.54592723,2074.2,2073.7,0.54046691]
[1773497789033,0.00443799,2074.2,2073.7,0.54046691]
[1773497789633,0.00443799,2074.2,2073.9,0.54046691]
[1773497790535,0.54148924,2074.3,2073.9,0.54046691]
[1773497791435,0.5450404,2074.3,2073.9,0.54046691]
[1773497794330,0.5450404,2074.3,2073.5,0.54046691]
[1773497798334,0.5450404,2074.3,2073.7,0.54046691]
[1773497804140,0.54148924,2073.9,2073.3,0.54046691]
[1773497813041,0.55484976,2074.1,2073.6,0.59456028]
[1773497813450,0.55840092,2074.3,2073.8,0.59456028]
[1773497815545,0.55484976,2074.7,2074.2,0.59456028]
[1773497816438,0.56040037,2074.7,2074.0,0.59456028]
[1773497816848,0.55484976,2074.6,2074.2,0.59456028]
[1773497818745,0.55484976,2075.0,2074.5,0.59456028]
[1773497819145,0.55484976,2075.2,2074.7,0.59456028]
[1773497819748,0.00523518,2075.2,2074.7,0.59989424]
[1773497820549,0.56008494,2075.2,2074.7,0.59989424]
[1773497821951,0.00523518,2075.2,2074.7,0.59989424]
[1773497822150,0.56008494,2075.2,2074.7,0.59989424]
[1773497829353,0.00523518,2075.2,2074.7,0.59989424]
[1773497829947,0.56008494,2075.2,2074.7,0.59989424]
[1773497830257,0.00523518,2075.2,2074.7,0.59989424]
[1773497830660,0.56008494,2075.2,2074.7,0.59989424]
[1773497830855,0.55484976,2075.4,2074.7,0.59989424]
[1773497831947,0.56065743,2075.4,2074.7,0.59989424]
[1773497832663,0.00580767,2075.4,2074.7,0.59989424]
[1773497834358,0.55484976,2075.6,2074.7,0.59989424]
[1773497834563,0.55484976,2075.9,2074.7,0.59989424]
[1773497835459,0.56031281,2075.9,2074.7,0.59989424]
[1773497836368,0.56031281,2075.9,2074.9,0.59456028]
[1773497836560,0.56031281,2075.9,2075.0,0.59456028]
[1773497844069,0.58996438,2075.8,2074.8,0.59612843]
[1773497847772,0.58996438,2075.7,2074.8,0.59612843]
[1773497852984,0.58996438,2075.6,2074.7,0.00533396]
[1773497853183,0.58996438,2075.5,2074.7,0.00533396]
[1773497854482,0.58996438,2075.4,2074.7,0.00533396]
[1773497855783,0.58996438,2075.3,2074.3,0.59612843]
[1773497855983,0.58996438,2075.2,2074.3,0.59612843]
[1773497856685,0.58996438,2075.2,2074.3,0.60024457]
[1773497861785,0.58996438,2075.2,2074.3,0.00411614]
[1773497862092,0.58996438,2075.2,2073.5,11.58325659]
[1773497862093,0.58996438,2075.2,2074.2,0.59612843]
[1773497862591,0.58996438,2075.2,2073.7,21.197]
[1773497862592,0.58996438,2075.0,2073.9,0.59612843]
[1773497862786,0.58770016,2074.9,2073.9,0.59612843]
[1773497862986,0.58770016,2074.9,2073.9,0.59976583]
[1773497863793,0.58996438,2074.8,2073.9,0.59976583]
[1773497864484,0.58996438,2074.7,2073.9,0.59976583]
[1773497881908,7.81713083,2075.1,2073.9,0.59976583]
[1773497881909,0.54325313,2075.1,2073.9,0.59976583]
[1773497882601,0.54325313,2075.0,2073.9,0.59976583]
[1773497883407,0.54325313,2074.9,2073.9,0.59976583]
[1773497883607,0.54325313,2074.8,2073.9,0.59976583]
[1773497883807,0.54325313,2074.8,2074.1,0.5482759]
[1773497886310,4.55938362,2075.2,2074.1,0.5482759]
[1773497886706,0.54325313,2075.1,2074.1,0.5482759]
[1773497886903,0.54325313,2075.0,2074.1,0.5482759]
[1773497887209,0.54325313,2074.9,2074.1,0.5482759]
[1773497888012,0.54325313,2074.9,2074.2,0.5482759]
[1773497888211,0.54325313,2075.0,2074.2,0.5482759]
[1773497891218,6.1141006,2075.1,2074.2,0.5482759]
[1773497891515,0.54325313,2075.0,2074.2,0.5482759]
[1773497891815,0.54325313,2075.0,2074.3,0.5482759]
[1773497905623,0.53921379,2074.9,2074.3,0.5482759]
[1773497907232,0.53921379,2074.8,2074.1,0.59274046]
[1773497907425,0.53921379,2074.7,2074.1,0.59274046]
[1773497911537,5.57940171,2074.8,2074.2,0.59274046]
[1773497911736,0.53921379,2074.9,2074.2,0.59274046]
[1773497911936,6.12241121,2074.9,2074.2,0.59274046]
[1773497912236,5.58319742,2074.8,2074.4,0.59274046]
[1773497912438,0.53921379,2074.9,2074.4,0.59274046]
[1773497912838,6.12232292,2074.9,2074.4,0.59274046]
[1773497913037,5.58310913,2074.8,2074.4,0.59274046]
[1773497913238,0.53921379,2074.9,2074.4,0.59274046]
[1773497913638,0.53921379,2074.8,2074.4,0.59274046]
[1773497914433,6.12249768,2074.8,2074.4,0.59274046]
[1773497914640,0.53921379,2074.9,2074.4,0.59274046]
[1773497915138,6.12269644,2074.9,2074.4,0.59274046]
[1773497915336,5.58348265,2074.8,2074.4,0.59274046]
[1773497915536,0.53921379,2074.9,2074.4,0.59274046]
[1773497915937,6.12298384,2074.9,2074.4,0.59274046]
[1773497916138,5.58377005,2074.8,2074.4,0.59274046]
[1773497916439,0.53921379,2074.9,2074.4,0.59274046]
[1773497916834,0.53921379,2074.8,2074.4,0.59274046]
[1773497917940,6.1231725,2074.8,2074.4,0.59274046]
[1773497918140,0.53921379,2074.8,2074.4,0.59274046]
[1773497928847,6.12308666,2074.8,2074.4,0.59274046]
[1773497929150,0.53921379,2074.8,2074.4,0.59274046]
[1773497929852,0.54285167,2074.7,2074.4,0.59274046]
[1773497930051,0.54285167,2074.8,2074.4,0.59274046]
[1773497930552,0.54285167,2074.7,2074.4,0.59274046]
[1773497932249,0.59660808,2074.8,2074.4,0.59274046]
[1773497932851,6.18067044,2074.8,2074.4,0.59274046]
[1773497933051,0.59660808,2074.8,2074.4,0.59274046]
[1773497933756,6.18074378,2074.8,2074.4,0.59274046]
[1773497933959,0.59660808,2074.8,2074.4,0.59274046]
[1773497935855,0.59660808,2074.7,2074.4,0.59274046]
[1773497941258,5.44733999,2074.8,2074.4,0.59274046]
[1773497941459,0.59660808,2075.0,2074.6,0.56954241]
[1773497943360,0.59660808,2075.0,2074.5,0.56954241]
[1773497950463,0.59660808,2074.9,2074.2,0.56954241]
[1773497952972,0.59660808,2075.1,2074.3,0.56954241]
[1773497953374,6.16865952,2075.0,2074.3,0.56954241]
[1773497953574,5.57205144,2074.9,2074.3,0.56954241]
[1773497953773,0.59660808,2075.0,2074.3,0.56954241]
[1773497954273,6.16864421,2075.0,2074.3,0.56954241]
[1773497954475,0.59660808,2075.0,2074.3,0.56954241]
[1773497954967,6.16850167,2075.0,2074.3,0.56954241]
[1773497955274,0.59660808,2075.0,2074.3,0.56954241]
[1773497955771,6.16846554,2075.0,2074.3,0.56954241]
[1773497955967,0.59660808,2075.0,2074.3,0.56954241]
[1773497956373,6.16847441,2075.0,2074.3,0.56954241]
[1773497956567,0.59660808,2075.0,2074.3,0.56954241]
[1773497956969,6.16848582,2075.0,2074.3,0.56954241]
[1773497957168,0.59660808,2075.0,2074.3,0.56954241]
[1773497957571,6.16848192,2075.0,2074.3,0.56954241]
[1773497957870,0.59660808,2075.0,2074.3,0.56954241]
[1773497958272,6.16848453,2075.0,2074.3,0.56954241]
[1773497958572,0.59660808,2075.1,2074.3,0.56954241]
[1773497958971,0.59660808,2075.0,2074.3,0.56954241]
[1773497959672,6.16899221,2075.0,2074.3,0.56954241]
[1773497959878,0.59660808,2075.0,2074.3,0.56954241]
[1773497960575,6.16860598,2075.0,2074.3,0.56954241]
[1773497960776,0.59660808,2075.0,2074.3,0.56954241]
[1773497961975,0.53908973,2075.2,2074.3,0.56954241]
[1773497962175,6.11057793,2075.1,2074.3,0.56954241]
[1773497962379,0.53908973,2075.1,2074.3,0.56954241]
[1773497962778,0.53908973,2075.0,2074.3,0.56954241]
[1773497969883,0.53908973,2074.8,2074.0,0.58285584]
[1773497970182,0.53908973,2074.7,2074.0,0.58285584]
[1773497990105,0.54799376,2074.9,2074.0,0.58285584]
[1773497990510,6.11777105,2074.9,2074.0,0.58285584]
[1773497990710,0.54799376,2074.9,2074.0,0.58285584]
[1773497991409,0.5784336,2074.8,2074.0,0.58285584]
[1773497998609,6.15039698,2074.8,2074.0,0.58285584]
[1773497998813,0.5784336,2074.8,2074.0,0.58285584]
[1773497999215,0.5784336,2074.8,2074.1,0.55762093]
[1773497999415,6.15162047,2074.8,2074.1,0.55762093]
[1773497999615,0.5784336,2074.8,2074.1,0.55762093]
[1773498000214,6.15373825,2074.8,2074.1,0.55762093]
[1773498000414,0.5784336,2074.8,2074.1,0.55762093]
[1773498001118,6.15387488,2074.8,2074.1,0.55762093]
[1773498001319,0.5784336,2074.8,2074.1,0.55762093]
[1773498001616,5.57561877,2075.0,2074.3,0.55762093]
[1773498001816,0.5784336,2075.1,2074.3,0.55762093]